Cogmind - Beta 11 X8 @@@ ROGUE MODE // 2021.12.10 @ 14:48:25 Player: btmk16 Result: Self-destructed Performance ------------- Evolutions (1) 500 Regions Visited (2) 400 Robots Destroyed (13) 65 Value Destroyed (237) 237 Prototype IDs (0) 0 Alien Tech Used (0) 0 Bonus (0) 0 TOTAL SCORE: 1202 Bonus ------- None Cogmind --------- Core Integrity 301/400 Matter 295/300 Energy 100/100 System Corruption 0% Temperature Cool (0) Movement Core (50) Location -9/Materials Parts ------- > --- POWER (1) -------- (None) > --- PROPULSION (2) --- (None) > --- UTILITY (4) ------ Sensor Array Signal Interpreter Hacking Suite > --- WEAPON (2) ------- (None) > --- INVENTORY (5) ---- Wheel Light Armor Plating Hacking Suite Hacking Suite Small Laser Peak State ------------ > --- POWER ------------ Light Ion Engine > --- PROPULSION ------- Flight Unit Flight Unit > --- UTILITY ---------- Sensor Array Signal Interpreter Hacking Suite Hacking Suite > --- WEAPON ----------- EM Pulse Gun Assault Rifle > --- INVENTORY -------- Light Treads Light Treads Wheel Light Armor Plating Small Laser [Rating: 13] Favorites ----------- Power Ion Engine Engine Ion Engine Propulsion Aluminum Leg Leg Aluminum Leg Flight Unit Flight Unit Utility Sensor Array Device Sensor Array Storage Small Storage Unit Processor Signal Interpreter Hackware Hacking Suite Weapon Assault Rifle Energy Gun EM Pulse Gun Ballistic Gun Assault Rifle Build | -11 -10 -9 ------- Run | Scr Mat Mat Slots Evolved 2 | . . 2 Power . | . . . Propulsion . | . . . Utility 2 | . . 2 Weapon . | . . . Parts Attached 7 | . 5 2 Power 1 | . 1 . Engine 1 | . 1 . Core . | . . . Reactor . | . . . Propulsion 2 | . 2 . Treads . | . . . Leg . | . . . Wheel . | . . . Hover . | . . . Flight 2 | . 2 . Utility 4 | . 2 2 Device 1 | . 1 . Storage . | . . . Processor 1 | . 1 . Hackware 2 | . . 2 Protection . | . . . Artifact . | . . . Weapon . | . . . Energy Gun . | . . . Energy Cannon . | . . . Ballistic Gun . | . . . Ballistic Cannon . | . . . Launcher . | . . . Special Weapon . | . . . Impact Weapon . | . . . Slashing Weapon . | . . . Piercing Weapon . | . . . Special Melee Weapon . | . . . Unidentified Prototypes . | . . . Parts Lost 5 | . . 5 Power . | . . . Propulsion 2 | . . 2 Utility 1 | . . 1 Weapon 2 | . . 2 Highest Loss Streak 5 | . . 5 Average Slot Usage (%) 92 | . 99 74 Engine 12 | . 14 9 Leg 15 | . 21 . Flight 9 | . 6 18 Device 13 | . 14 11 Storage 7 | . 10 . Processor 4 | . 2 11 Hackware 2 | . . 9 Energy Gun 12 | . 14 7 Ballistic Gun 12 | . 14 9 Naked Turns . | . . . Heaviest Build 15 | 14 15 8 Greatest Support 20 | 20 20 8 Greatest Overweight (x) 2 | . 2 1 Average Overweight (x) . | . . . Largest Inventory Capacity 8 | . 8 5 Average Capacity 6 | . 7 5 Most Carried 8 | . 8 5 Average Carried 6 | . 6 4 Final Capacity 8 | 8 5 5 Final Carried 6 | 6 5 5 Class Distribution -------------------- 63% | Mutant 28% | Scavenger-Mutant 8% | Hacker-Mutant Dominant Class ---------------- Mutant | -10/Materials Scavenger-Mutant | -9/Materials Resources | -11 -10 -9 ----------- Run | Scr Mat Mat Matter Collected 307 | 200 107 . Remotely . | . . . Salvage Created 373 | . 373 . Parts 36 | . 36 . Haulers Intercepted . | . . . Recyclers Shooed 1 | . . 1 Parts Field Recycled . | . . . Retrieved Matter . | . . . Parts Self-Destructed . | . . . Prevented . | . . . Kills | -11 -10 -9 ------- Run | Scr Mat Mat Combat Hostiles Destroyed 7 | . 7 . Guns 6 | . 6 . AOE 1 | . 1 . Classes Destroyed 6 | . 6 . Worker 1 | . 1 . Recycler 1 | . 1 . Operator 2 | . 2 . Watcher 2 | . 2 . Swarmer 3 | . 3 . Grunt 4 | . 4 . Best Kill Streak 5 | . 5 . Combat Bots Only 5 | . 5 . Max Kills in Single Turn 1 | . 1 . Gunslinging . | . . . Exploded 1 | . 1 . Melee . | . . . Uniques/NPCs Destroyed . | . . . Combat | -11 -10 -9 -------- Run | Scr Mat Mat Damage Taken 463 | . 156 307 Core 143 | . 44 99 Absorbed by Shields . | . . . Core Remaining (%) 91 | 100 82 . Volleys Fired 23 | . 19 4 Largest 2 | . 2 2 Hottest 60 | . 60 60 Shots Fired 46 | . 38 8 Gun 46 | . 38 8 Cannon . | . . . Launcher . | . . . Special . | . . . Kinetic 23 | . 19 4 Thermal . | . . . Explosive . | . . . Electromagnetic 23 | . 19 4 Robot Hit Streak 14 | . 14 3 Robot Miss Streak 2 | . 2 1 Penetration Max . | . . . Secondary Targets 2 | . 2 . Max Gunslinging Chain 1 | . 1 . Shots Hit Robots 28 | . 22 6 Core Hits 17 | . 16 1 Critical Kills . | . . . Critical Parts Destroyed . | . . . Critical Strikes . | . . . Melee Attacks . | . . . Impact . | . . . Slashing . | . . . Piercing . | . . . Sneak Attacks . | . . . Combat Hostiles . | . . . Follow-up Attacks . | . . . Damage Inflicted 441 | . 365 76 Guns 389 | . 317 72 Cannons . | . . . Explosions 48 | . 48 . Melee . | . . . Ramming 4 | . . 4 Kinetic 159 | . 124 35 Thermal 48 | . 48 . Explosive . | . . . Electromagnetic 230 | . 193 37 Impact . | . . . Slashing . | . . . Piercing . | . . . Highest Corruption . | . . . Average Corruption . | . . . Corruption Purged . | . . . Overload Shots . | . . . Overflow Damage . | . . . Projectiles . | . . . Explosions . | . . . Melee . | . . . Knockbacks . | . . . Impact . | . . . Kinetic . | . . . Secondary . | . . . Self-Inflicted Damage 33 | . 31 2 Shots 1 | . 1 . Rammed 1 | . . 1 Targets Rammed 1 | . . 1 Kicked . | . . . Crushed . | . . . Highest Temperature 24 | . 24 10 Average Temperature 12 | . 12 10 Received Heat Transfer 207 | . 36 171 Siege Activations . | . . . Robots Corrupted . | . . . Combat Hostiles . | . . . Parts Fried . | . . . Impact Corruptions . | . . . Robots Melted . | . . . Combat Hostiles . | . . . Parts Melted . | . . . Heat Transferred 100 | . 100 . Parts Sabotaged . | . . . Parts Stolen . | . . . Parts Stripped . | . . . Power Chain Reactions 2 | . 2 . Missiles Intercepted . | . . . Alert | -11 -10 -9 ------- Run | Scr Mat Mat Peak Influence 299 | . 299 154 Initial 73 | . . 73 Average 168 | . 190 110 Maximum Alert Level 1 | . 1 . Low Security (%) 58 | . 43 100 Level 1 41 | . 56 . Level 2 . | . . . Level 3 . | . . . Level 4 . | . . . Level 5 . | . . . High Security . | . . . Max Security . | . . . Squads Dispatched 3 | . 2 1 Investigation 1 | . . 1 Extermination . | . . . Reinforcement 2 | . 2 . Assault . | . . . Garrison . | . . . Intercept . | . . . Construction Impeded . | . . . Haulers Reinforced . | . . . Active Scanning Responses . | . . . Cargo Convoy Interrupts . | . . . Stealth | -11 -10 -9 --------- Run | Scr Mat Mat Distress Signals 2 | . 1 1 Communications Jammed . | . . . Distress Signals . | . . . Times Spotted 36 | . 20 16 Peak Tracking Total 16 | . 6 16 Tactical Retreats 3 | . 2 1 Traps | -11 -10 -9 ------- Run | Scr Mat Mat Traps Triggered 1 | . . 1 Indirectly . | . . . Trap Hack Attempts . | . . . Triggered . | . . . Disarmed . | . . . Reprogrammed . | . . . Reused . | . . . Traps Extracted . | . . . Installed . | . . . Triggered . | . . . Machines | -11 -10 -9 ---------- Run | Scr Mat Mat Machines Disabled . | . . . Max in Single Turn . | . . . Machines Sabotaged . | . . . Garrisons Compromised . | . . . Overloaded Fab Kills . | . . . Hacking | -11 -10 -9 --------- Run | Scr Mat Mat Machines Accessed 2 | . 1 1 Terminals 2 | . 1 1 Fabricators . | . . . Repair Stations . | . . . Recycling Units . | . . . Scanalyzers . | . . . Garrison Access . | . . . Total Hacks 9 | . 2 7 Successful 5 | . 1 4 Failed 4 | . 1 3 Catastrophic . | . . . Database Lockouts . | . . . Manual 6 | . . 6 Terminals 9 | . 2 7 Fabricators . | . . . Repair Stations . | . . . Recycling Units . | . . . Scanalyzers . | . . . Garrison Access . | . . . Terminal Hacks 4 | . 1 3 Robot Analysis 3 | . . 3 Zone Layout 1 | . 1 . Fabricator Hacks . | . . . Repair Station Hacks . | . . . Recycling Unit Hacks . | . . . Scanalyzer . | . . . Garrison Access Hacks . | . . . Unauthorized Hacks 1 | . . 1 Terminals 1 | . . 1 Botnet 1 | . . 1 Fabricators . | . . . Repair Stations . | . . . Recycling Units . | . . . Scanalyzers . | . . . Garrison Access . | . . . Data Cores Recovered . | . . . Used . | . . . Hacking Detections 1 | . . 1 Full Trace Events . | . . . Feedback Events . | . . . Feedback Blocked . | . . . Robot Schematics Acquired . | . . . Robots Built . | . . . Authchips . | . . . Time . | . . . Total Robot Build Rating . | . . . Part Schematics Acquired . | . . . Parts Built . | . . . Authchips . | . . . Time . | . . . Total Part Build Rating . | . . . Parts Repaired . | . . . Time . | . . . Parts Recycled . | . . . Recycled Matter . | . . . Retrieved Matter . | . . . Retrieved Components . | . . . Parts Scanalyzed . | . . . Part Schematics Acquired . | . . . Parts Damaged . | . . . Bothacking | -11 -10 -9 ------------ Run | Scr Mat Mat Used RIF Installer . | . . . Robots Hacked . | . . . Non-combat . | . . . Combat . | . . . Robot Hacks Applied . | . . . Relay Couplers Released . | . . . Fabnet Peak Effective % . | . . . Robots Rewired . | . . . Allies Hacked . | . . . Hacks Repelled . | . . . Allies | -11 -10 -9 -------- Run | Scr Mat Mat Total Allies . | . . . Largest Group . | . . . Highest-Rated Group . | . . . Highest-Rated Ally . | . . . Total Orders . | . . . Ally Attacks . | . . . Total Damage . | . . . Kills . | . . . Allies Corrupted . | . . . Allies Melted . | . . . Intel | -11 -10 -9 ------- Run | Scr Mat Mat Robot Analysis Total 3 | . . 3 Derelict Logs Recovered . | . . . Drone Launches . | . . . Drone Recoveries . | . . . Exploration | -11 -10 -9 ------------- Run | Scr Mat Mat Turns Passed 614 | . 446 168 Spaces Moved 790 | 1 468 321 Core 64 | . . 64 Treads . | . . . Legs 220 | 1 219 . Wheels . | . . . Hover . | . . . Flight 506 | . 249 257 Fastest Speed 37 | 120 37 37 Average Speed 61 | 120 76 39 Slowest Speed 200 | 120 200 120 Overloaded Moves . | . . . Propulsion Burnouts . | . . . Robots Hopped 7 | . 3 4 Cave-ins Triggered . | . . . Exploration Rate (%) 27 | 1 46 36 Regions Visited 2 Branch Regions . Pre-discovered Areas . | . . . Known Exits Taken 1 | . 1 . Unknown Exits Taken 1 | 1 . . Scrap Searched . | . . . Spaces Dug . | . . . Terrain Destroyed 6 | . 6 . Melee . | . . . Projectile . | . . . AOE 6 | . 6 . Terrain Rammed . | . . . Walls Destroyed . | . . . Machines Disabled . | . . . Actions | -11 -10 -9 --------- Run | Scr Mat Mat Total 862 | . 513 349 Wait 37 | . 17 20 Move 774 | . 461 313 Hop 7 | . 3 4 Pick Up 5 | . 3 2 Fast Attach 7 | . 5 2 Attach . | . . . Detach . | . . . Swap . | . . . Drop 8 | . 5 3 Fire 23 | . 19 4 Melee . | . . . Ram 1 | . . 1 Kick . | . . . Crush . | . . . Escape Stasis . | . . . Rewire . | . . . Trap . | . . . Miscellaneous . | . . . Route ------- -11/Scrapyard -10/Materials (discovered 3 exits: *Mat / [*Min x2]) -9/Materials History --------- Turn | Location | Event 1 | -11/Scrapyard | Discovered new exit (range 0) 1 | -11/Scrapyard | Entered Materials 147 | -10/Materials | Discovered new exit (range 16) 265 | -10/Materials | Discovered new exit (range 9) 304 | -10/Materials | Build established: Mutant 421 | -10/Materials | Discovered new exit (range 8) 447 | -10/Materials | Identified exit to Materials 447 | -10/Materials | Entered another Materials area 447 | -9/Materials | Evolved 2 slots: Utility x2 615 | -9/Materials | Lost 5 parts (2n1u2w) 615 | -9/Materials | Self-destructed Last Messages --------------- 00524_ Dropped Lgt. Treads. 00525_ Acquired Hacking Suite. 00531_ Triggered Alarm Trap. 00531_ An alarm sounds. 00531_ ALERT: Alarm triggered, dispatching investigation squad. 00551_ EM Pulse Gun destroyed. 00551_ Critical hit (Burn: +37). 00568_ T-07 Excavator is excavating. 00569_ K-01 Serf collects debris. 00572_ T-07 Excavator is excavating. 00573_ K-01 Serf collects debris. 00578_ Hacking Suite destroyed. 00580_ Flight Unit destroyed. 00581_ Dropped Lgt. Ion Engine. 00582_ Flight Unit destroyed. 00582_ Slammed into R-06 Scavenger. 00582_ Assault Rifle permanently disabled. 00582_ Destabilizing: Short circuit. 00584_ Broken Assault Rifle destroyed. 00586_ K-01 Serf collects debris. Map ----- +----------------------------------------------------+ | ???????????# #????# ######+#####??????????? | | ############ #????# ## #??????????? | | #????# ## [ #??????????? | | #????# + #??????????? | | ####????# ## #??????????? | | ##########+####???????# ## """ """ #??????????? | | #??????? ?????????## ### """ """ #?????????? | | #??????# ????????# #?# """ """ ???????????? | | #??????# ??????# #?# ????????????? | | ?????# #?????# #?#########????????????? | | ???# #?????# #??????????????????????? | | ??# #?????# #??????????????????????? | | ##### ?# #?????# #?????"#???????????????? | | ?????? # #?????# #????T"###?????????????? | | ??????? ###########?????# #???? +?????????????? | | ????????????????????????# #??? #?????????????? | | ???????????????????????##+##? #?????????????? | | ???????????????????????# #?[ #?????????????? | | ???????????????????????# # #?????????????? | | ???????????????????????# # "T" #?????????????? | | ???????????????????????# k xx #?????????????? | | ???????????????????????# #x / +??????????? | | ???????????????????????# # #########??????????? | | ??????????????????#????# #? #??????????? | | ??????????????????# ##/## a ????????? | | ??????????????????# @ ????????? | | ????????????????#"" u ????????? | | ????????????????#"Y """ """ s????????? | | ????????????????#"" r """"""""" ?????????? | | ????????????????### k """"" ????????????? | | ??????????????????# ???????????????? | | ????????????????? ??????????????????? | | ????????????????#### #####???????????????????? | | ???????????????????# ????????????????????????? | | ???????????????????# ????????????????????????? | | ???????????????????# ????????????????????????? | | ???????????????????# ????????????????????????? | | ??????????????????? ###????????????????????????? | | ???????????????????###???????????????????????????? | | ?????????????????????????????????????????????????? | | ?????????????????????????????????????????????????? | | ?????????????????????????????????????????????????? | | ?????????????????????????????????????????????????? | | ?????????????????????????????????????????????????? | | | | | | | | | | | | | +----------------------------------------------------+ Best States ------------- Heat Dissipation 28 Energy Generation 10 Energy Capacity 250 Matter Stores 300 Matter Capacity 300 Sight Range 16 Robot Scan Range 14 Terrain Scan Density 10 Evasion (%) 62 Offensive Hacking 20 Item Schematics ----------------- None Robot Schematics ------------------ None Fabricated ------------ Nothing Alien Tech Used ----------------- None Achievements -------------- None Challenges ------------ None Game ------ Seed TerrainPointyLance Manual? 0 Play Time 00:07:24 Cumulative 184.3 hours Start 2021.12.10 @ 14:37:37 End 2021.12.10 @ 14:48:25 Sessions 1 Manual Loads 0 Difficulty Rogue Special Mode None Game No. 252 Rogue 252 Adventurer 0 Explorer 0 Win Type - Total 2 Types 2/0/0/0/0/0/0/0/0 Lore% 61 Gallery% 73 Achievement% 51 Wizard Run 0 Options --------- ASCII 0 Keyboard 1 Movement Vi Keybinds 0 Fullscreen 1 Font 18/SmallcapsGlow Map View 76x50 Tactical HUD 1 Map Filters NONE Filters NONE Steam 1 RUN: 5c7ec152-093e-4940-9e15-d013f42b0822